fUSD/lending_fUSD_20240129
["ID","MTS","AMOUNT","RATE_DAILY","PERIOD"]
[312975625,1706560275642,-25000.0,0.00053151,30]
[312975626,1706560275652,-25000.0,0.00053151,30]
[312975627,1706560275661,-25000.0,0.00053151,30]
[312975628,1706560275670,-25000.0,0.00053151,30]
[312975629,1706560275679,-25000.0,0.00053151,30]
[312975630,1706560275688,-25000.0,0.00053151,30]
[312975631,1706560275697,-25000.0,0.00053151,30]
[312975632,1706560275706,-25000.0,0.00053151,30]
[312975633,1706560275715,-25000.0,0.00053151,30]
[312975634,1706560275723,-25000.0,0.00053151,30]
[312975635,1706560275732,-25000.0,0.00053151,30]
[312975636,1706560275742,-25000.0,0.00053151,30]
[312975637,1706560275750,-25000.0,0.00053151,30]
[312975638,1706560275760,-25000.0,0.00053151,30]
[312975639,1706560275769,-25000.0,0.00053151,30]
[312975640,1706560275778,-25000.0,0.00053151,30]
[312975641,1706560275789,-25000.0,0.00053151,30]
[312975642,1706560275799,-25000.0,0.00053151,30]
[312975643,1706560275809,-25000.0,0.00053151,30]
[312975644,1706560275819,-25000.0,0.00053151,30]
[312975645,1706560275830,-25000.0,0.00053151,30]
[312975646,1706560275842,-25000.0,0.00053151,30]
[312975647,1706560275851,-25000.0,0.00053151,30]
[312975648,1706560275860,-25000.0,0.00053151,30]
[312975649,1706560275869,-25000.0,0.00053151,30]
[312975650,1706560275878,-25000.0,0.00053151,30]
[312975651,1706560276022,-25000.0,0.00053151,30]
[312975652,1706560276031,-25000.0,0.00053151,30]
[312975653,1706560276041,-25000.0,0.00053151,30]
[312975654,1706560276051,-25000.0,0.00053151,30]
[312975655,1706560276061,-25000.0,0.00053151,30]
[312975656,1706560276071,-25000.0,0.00053151,30]
[312975657,1706560276080,-25000.0,0.00053151,30]
[312975658,1706560276089,-25000.0,0.00053151,30]
[312975659,1706560276099,-25000.0,0.00053151,30]
[312975660,1706560276110,-25000.0,0.00053151,30]
[312975661,1706560276120,-25000.0,0.00053151,30]
[312975662,1706560276131,-25000.0,0.00053151,30]
[312975663,1706560276140,-25000.0,0.00053151,30]
[312975664,1706560276149,-25000.0,0.00053151,30]
[312975665,1706560276158,-25000.0,0.00053151,30]
[312975666,1706560276167,-25000.0,0.00053151,30]
[312975667,1706560276177,-25000.0,0.00053151,30]
[312975668,1706560276186,-9481.68535843,0.00053151,30]
[312975669,1706560276195,-104391.28103271,0.00053151,30]
[312975670,1706560276205,-154.67281811,0.00053166,60]
[312975671,1706560276214,-2000.0,0.00053177,2]
[312975672,1706560276224,-154.67281811,0.00053187,60]
[312975673,1706560276233,-151.0129,0.00053198,59]
[312975674,1706560276243,-41291.10081402,0.000532,120]
[312975675,1706560276253,-41291.10081399,0.000532,120]
[312975676,1706560276262,-41291.10081399,0.000532,120]
[312975677,1706560276272,-41291.10081399,0.000532,120]
[312975678,1706560276282,-41291.10081399,0.000532,120]
[312975679,1706560276291,-157.47372314,0.00053225,60]
[312975680,1706560276300,-150.52477513,0.00053226,60]
[312975681,1706560276310,-157.83769784,0.00053233,60]
[312975682,1706560276319,-500.0,0.00053235,120]
[312975683,1706560276328,-161.23409422,0.00053237,60]
[312975684,1706560276337,-154.67281811,0.00053243,60]
[312975685,1706560276346,-150.52477513,0.00053263,60]
[312975686,1706560276355,-155.84294885,0.00053265,60]
[312975687,1706560276364,-154.67281811,0.00053296,60]
[312975688,1706560276373,-500000.0,0.000533,120]
[312975689,1706560276383,-9682350.35005379,0.000533,31]
[312975690,1706560276392,-162328.95967999,0.000533,120]
[312975691,1706560276401,-852.03040929,0.000533,120]
[312975692,1706560276411,-2936.13420756,0.000533,2]
[312975693,1706560276420,-2936.13420756,0.000533,2]
[312975694,1706560276430,-166.53972704,0.00053312,60]
[312975695,1706560276439,-153.29755698,0.00053315,60]
[312975696,1706560276451,-153.29755698,0.0005332,60]
[312975697,1706560276460,-150.52477513,0.00053341,60]
[312975698,1706560276470,-151.0129,0.00053348,56]
[312975699,1706560276479,-166.53972704,0.00053367,60]
[312975700,1706560276489,-304.0,0.0005339,2]
[312975701,1706560276500,-196.0,0.0005339,2]
[312975702,1706560276510,-166.53972704,0.00053392,60]
[312975703,1706560276519,-139238.14441351,0.000534,120]
[312975704,1706560276531,-120758.8123,0.000534,120]
[312975705,1706560276542,-500000.0,0.000534,120]
[312975706,1706560276551,-3724.03608507,0.000534,60]
[312975707,1706560276560,-7000.0,0.000534,22]
[312975708,1706560276570,-150.52477513,0.00053412,60]
[312975709,1706560276580,-200.0,0.00053424,31]
[312975710,1706560276589,-802.85,0.00053424,31]
[312975711,1706560276599,-690.05,0.00053424,31]
[312975712,1706560276608,-500.0,0.00053424,7]
[312975713,1706560276618,-612.45,0.00053424,31]
[312975714,1706560276627,-960.0,0.00053424,31]
[312975715,1706560276636,-589.26983577,0.00053424,2]
[312975716,1706560276645,-500.0,0.00053424,31]
[312975717,1706560276654,-500.0,0.00053424,31]
[312975718,1706560276663,-660.93,0.00053424,31]
[312975719,1706560276671,-500.0,0.00053424,31]
[312975720,1706560276680,-400.77169994,0.00053424,31]
[312975721,1706560276689,-588.26,0.00053424,31]
[312975722,1706560276697,-500.0,0.00053424,31]
[312975723,1706560276706,-803.89,0.00053424,2]
[312975724,1706560276715,-584.71,0.00053424,31]
[312975725,1706560276724,-518.29,0.00053424,15]
[312975726,1706560276734,-794.24,0.00053424,2]
[312975727,1706560276745,-536.17,0.00053424,31]
[312975728,1706560276755,-500.0,0.00053424,31]
[312975729,1706560276766,-608.92,0.00053424,31]
[312975730,1706560276775,-500.0,0.00053424,31]
[312975731,1706560276785,-500.0,0.00053424,31]
[312975732,1706560276794,-500.0,0.00053424,31]
[312975733,1706560276804,-500.0,0.00053424,31]
[312975734,1706560276815,-500.0,0.00053424,31]
[312975735,1706560276824,-500.0,0.00053424,31]
[312975736,1706560276834,-794.87,0.00053424,31]
[312975737,1706560276845,-500.0,0.00053424,31]
[312975738,1706560276854,-637.14,0.00053424,31]
[312975739,1706560276863,-500.0,0.00053424,31]
[312975740,1706560276873,-500.0,0.00053424,31]
[312975741,1706560276882,-500.0,0.00053424,31]
[312975742,1706560276891,-500.0,0.00053424,31]
[312975743,1706560276901,-500.0,0.00053424,31]
[312975744,1706560276910,-500.0,0.00053424,31]
[312975745,1706560276919,-500.0,0.00053424,31]
[312975746,1706560276928,-527.51,0.00053424,2]
[312975747,1706560276938,-654.97,0.00053424,31]
[312975748,1706560276947,-1071.26,0.00053424,7]
[312975749,1706560276956,-500.0,0.00053424,31]
[312975750,1706560276966,-500.0,0.00053424,31]
[312975751,1706560276975,-1434.64,0.00053424,31]
[312975752,1706560276985,-500.0,0.00053424,31]
[312975753,1706560276994,-1000.0,0.00053424,7]
[312975754,1706560277003,-500.0,0.00053424,31]
[312975755,1706560277012,-613.37,0.00053424,31]
[312975756,1706560277021,-500.0,0.00053424,31]
[312975757,1706560277031,-154.64782644,0.00053424,2]
[312975758,1706560277040,-1690.03,0.00053424,31]
[312975759,1706560277049,-1985.41,0.00053424,2]
[312975760,1706560277058,-494.8248254,0.00053424,2]
[312975761,1706560277067,-500.0,0.00053424,31]
[312975762,1706560277077,-500.0,0.00053424,31]
[312975763,1706560277086,-500.0,0.00053424,31]
[312975764,1706560277095,-500.0,0.00053424,31]
[312975765,1706560277104,-500.0,0.00053424,31]
[312975766,1706560277113,-500.0,0.00053424,31]
[312975767,1706560277122,-500.0,0.00053424,31]
[312975768,1706560277131,-500.0,0.00053424,31]
[312975769,1706560277141,-500.0,0.00053424,31]
[312975770,1706560277150,-500.0,0.00053424,31]
[312975771,1706560277159,-500.0,0.00053424,31]
[312975772,1706560277168,-500.0,0.00053424,31]
[312975773,1706560277178,-500.0,0.00053424,31]
[312975774,1706560277187,-509.57073688,0.00053424,31]
[312975775,1706560277195,-167.81610744,0.00053424,31]
[312975776,1706560277204,-929.78,0.00053424,31]
[312975777,1706560277214,-500.0,0.00053424,31]
[312975778,1706560277223,-500.0,0.00053424,31]
[312975779,1706560277232,-500.0,0.00053424,31]
[312975780,1706560277241,-689.25,0.00053424,31]
[312975781,1706560277250,-500.0,0.00053424,31]
[312975782,1706560277259,-500.0,0.00053424,31]
[312975783,1706560277269,-500.0,0.00053424,31]
[312975784,1706560277279,-500.0,0.00053424,31]
[312975785,1706560277289,-1000.0,0.00053424,31]
[312975786,1706560277298,-525.86,0.00053424,31]
[312975787,1706560277307,-500.0,0.00053424,31]
[312975788,1706560277317,-500.0,0.00053424,31]
[312975789,1706560277326,-500.0,0.00053424,31]
[312975790,1706560277335,-508.14,0.00053424,31]
[312975791,1706560277345,-561.83538341,0.00053424,31]
[312975792,1706560277355,-500.0,0.00053424,31]
[312975793,1706560277364,-703.04,0.00053424,31]
[312975794,1706560277373,-1153.07,0.00053424,31]
[312975795,1706560277382,-733.87,0.00053424,31]
[312975796,1706560277391,-500.0,0.00053424,31]
[312975797,1706560277400,-500.0,0.00053424,2]
[312975798,1706560277409,-500.0,0.00053424,31]
[312975799,1706560277418,-500.0,0.00053424,31]
[312975800,1706560277427,-391.73707376,0.00053424,31]
[312975801,1706560277437,-542.06,0.00053424,31]
[312975802,1706560277446,-550.0,0.00053424,30]
[312975803,1706560277455,-500.0,0.00053424,31]
[312975804,1706560277464,-500.0,0.00053424,31]
[312975805,1706560277473,-500.0,0.00053424,31]
[312975806,1706560277482,-500.0,0.00053424,31]
[312975807,1706560277491,-760.13,0.00053424,31]
[312975808,1706560277501,-500.0,0.00053424,31]
[312975809,1706560277510,-526.06,0.00053424,31]
[312975810,1706560277520,-500.0,0.00053424,31]
[312975811,1706560277529,-500.0,0.00053424,31]
[312975812,1706560277538,-1016.8,0.00053424,31]
[312975813,1706560277547,-4583.74,0.00053424,31]
[312975814,1706560277557,-1755.03,0.00053424,7]
[312975815,1706560277566,-1002.26,0.00053424,31]
[312975816,1706560277575,-1000.0,0.00053424,20]
[312975817,1706560277584,-1000.0,0.00053424,20]
[312975818,1706560277593,-1000.0,0.00053424,20]
[312975819,1706560277602,-1000.0,0.00053424,20]
[312975820,1706560277611,-1000.0,0.00053424,20]
[312975821,1706560277619,-4249.45,0.00053424,31]
[312975822,1706560277628,-1000.0,0.00053424,20]
[312975823,1706560277637,-503.19,0.00053424,31]
[312975824,1706560277646,-10182.67,0.00053424,31]
[312975825,1706560277656,-500.0,0.00053424,31]
[312975826,1706560277665,-1038.15,0.00053424,31]
[312975827,1706560277674,-1871.53,0.00053424,31]
[312975828,1706560277683,-1548.31,0.00053424,31]
[312975829,1706560277692,-555.33282458,0.00053424,31]
[312975830,1706560277701,-1007.6,0.00053424,31]
[312975831,1706560277711,-500.0,0.00053424,31]
[312975832,1706560277720,-500.0,0.00053424,31]
[312975833,1706560277729,-4198.38,0.00053424,31]
[312975834,1706560277738,-4148.68,0.00053424,5]
[312975835,1706560277747,-500.0,0.00053424,31]
[312975836,1706560277756,-569.88,0.00053424,31]
[312975837,1706560277766,-1746.98,0.00053424,31]
[312975838,1706560277775,-946.79,0.00053424,31]
[312975839,1706560277784,-659.85,0.00053424,31]
[312975840,1706560277792,-500.0,0.00053424,31]
[312975841,1706560277801,-1063.77,0.00053424,31]
[312975842,1706560277811,-7962.11,0.00053424,31]
[312975843,1706560277820,-3153.28,0.00053424,31]
[312975844,1706560277830,-500.0,0.00053424,31]
[312975845,1706560277842,-500.0,0.00053424,31]
[312975846,1706560277851,-500.0,0.00053424,31]
[312975847,1706560277860,-4332.43,0.00053424,31]
[312975848,1706560277870,-1133.9,0.00053424,31]
[312975849,1706560277879,-1617.28,0.00053424,31]
[312975850,1706560277889,-5863.89,0.00053424,31]
[312975851,1706560277898,-500.0,0.00053424,31]
[312975852,1706560277907,-1197.97,0.00053424,31]
[312975853,1706560277917,-1997.59,0.00053424,31]
[312975854,1706560277926,-500.0,0.00053424,7]
[312975855,1706560277936,-1149.94,0.00053424,31]
[312975856,1706560277945,-681.59,0.00053424,31]
[312975857,1706560277954,-500.0,0.00053424,31]
[312975858,1706560277964,-500.0,0.00053424,31]
[312975859,1706560277974,-500.0,0.00053424,31]
[312975860,1706560277983,-1457.36,0.00053424,31]
[312975861,1706560277992,-508.06,0.00053424,31]
[312975862,1706560278115,-500.0,0.00053424,31]
[312975863,1706560278125,-1023.2,0.00053424,31]
[312975864,1706560278134,-1286.28,0.00053424,31]
[312975865,1706560278143,-500.0,0.00053424,7]
[312975866,1706560278153,-507.82,0.00053424,31]
[312975867,1706560278162,-642.3,0.00053424,31]
[312975868,1706560278171,-1436.82,0.00053424,31]
[312975869,1706560278180,-2904.01,0.00053424,5]
[312975870,1706560278189,-500.0,0.00053424,31]
[312975871,1706560278198,-1073.77,0.00053424,31]
[312975872,1706560278208,-500.0,0.00053424,31]
[312975873,1706560278217,-500.0,0.00053424,31]
[312975874,1706560278227,-902.23,0.00053424,31]
[312975875,1706560278237,-500.0,0.00053424,31]
[312975876,1706560278247,-1043.52,0.00053424,31]
[312975877,1706560278257,-2075.54,0.00053424,31]
[312975878,1706560278266,-1153.25,0.00053424,31]
[312975879,1706560278276,-500.0,0.00053424,31]
[312975880,1706560278285,-1170.76,0.00053424,31]
[312975881,1706560278296,-992.98,0.00053424,31]
[312975882,1706560278307,-1219.32,0.00053424,31]
[312975883,1706560278318,-2355.86,0.00053424,31]
[312975884,1706560278327,-1137.14,0.00053424,31]
[312975885,1706560278339,-1856.63,0.00053424,31]
[312975886,1706560278349,-525.44,0.00053424,31]
[312975887,1706560278359,-1046.32,0.00053424,31]
[312975888,1706560278369,-2810.09,0.00053424,31]
[312975889,1706560278378,-4393.08,0.00053424,31]
[312975890,1706560278387,-777.18,0.00053424,31]
[312975891,1706560278396,-500.0,0.00053424,31]
[312975892,1706560278406,-352.82372794,0.00053424,31]
[312975893,1706560278415,-500.0,0.00053424,31]
[312975894,1706560278425,-543.5,0.00053424,31]
[312975895,1706560278433,-500.0,0.00053424,31]
[312975896,1706560278443,-654.21,0.00053424,31]
[312975897,1706560278452,-1384.66,0.00053424,31]
[312975898,1706560278461,-2160.75,0.00053424,31]
[312975899,1706560278471,-2285.93,0.00053424,7]
[312975900,1706560278480,-745.11,0.00053424,31]
[312975901,1706560278491,-1522.49,0.00053424,31]
[312975902,1706560278501,-1223.13,0.00053424,31]
[312975903,1706560278511,-2278.99,0.00053424,31]
[312975904,1706560278520,-2428.38,0.00053424,31]
[312975905,1706560278531,-2579.65,0.00053424,31]
[312975906,1706560278541,-500.0,0.00053424,31]
[312975907,1706560278551,-1020.99,0.00053424,31]
[312975908,1706560278561,-500.0,0.00053424,31]
[312975909,1706560278572,-636.57,0.00053424,31]
[312975910,1706560278581,-500.0,0.00053424,14]
[312975911,1706560278591,-521.29,0.00053424,31]
[312975912,1706560278602,-818.65,0.00053424,31]
[312975913,1706560278611,-1372.59,0.00053424,31]
[312975914,1706560278623,-572.3284582,0.00053424,31]
[312975915,1706560278633,-500.0,0.00053424,31]
[312975916,1706560278643,-500.0,0.00053424,31]
[312975917,1706560278653,-500.0,0.00053424,31]
[312975918,1706560278663,-1474.92,0.00053424,31]
[312975919,1706560278672,-529.19,0.00053424,31]
[312975920,1706560278683,-500.0,0.00053424,31]
[312975921,1706560278692,-500.0,0.00053424,31]
[312975922,1706560278703,-4936.79,0.00053424,31]
[312975923,1706560278712,-820.98,0.00053424,31]
[312975924,1706560278722,-354.50579439,0.00053424,31]
[312975925,1706560278731,-1797.82,0.00053424,31]
[312975926,1706560278741,-1033.55,0.00053424,31]
[312975927,1706560278750,-527.47,0.00053424,31]
[312975928,1706560278759,-1398.26,0.00053424,31]
[312975929,1706560278770,-1095.17,0.00053424,31]
[312975930,1706560278780,-1726.01,0.00053424,31]
[312975931,1706560278789,-1943.7,0.00053424,31]
[312975932,1706560278799,-500.0,0.00053424,31]
[312975933,1706560278809,-500.0,0.00053424,31]
[312975934,1706560278820,-500.0,0.00053424,31]
[312975935,1706560278832,-500.0,0.00053424,31]
[312975936,1706560278843,-558.58,0.00053424,31]
[312975937,1706560278852,-500.0,0.00053424,31]
[312975938,1706560278862,-1144.47,0.00053424,31]
[312975939,1706560278872,-7410.07,0.00053424,31]
[312975940,1706560278883,-500.0,0.00053424,31]
[312975941,1706560278893,-1617.52,0.00053424,31]
[312975942,1706560278903,-500.0,0.00053424,31]
[312975943,1706560278914,-2653.45,0.00053424,31]
[312975944,1706560278924,-500.0,0.00053424,31]
[312975945,1706560278934,-500.0,0.00053424,31]
[312975946,1706560278943,-500.0,0.00053424,31]
[312975947,1706560278952,-10106.11,0.00053424,31]
[312975948,1706560278962,-500.0,0.00053424,31]
[312975949,1706560278971,-500.0,0.00053424,31]
[312975950,1706560278981,-500.0,0.00053424,31]
[312975951,1706560278991,-1502.27,0.00053424,31]
[312975952,1706560279001,-1138.89,0.00053424,31]
[312975953,1706560279011,-642.23,0.00053424,31]
[312975954,1706560279021,-2268.94,0.00053424,31]
[312975955,1706560279031,-724.26,0.00053424,31]
[312975956,1706560279041,-564.2,0.00053424,2]
[312975957,1706560279052,-500.0,0.00053424,31]
[312975958,1706560279062,-2909.62,0.00053424,31]
[312975959,1706560279071,-1338.16,0.00053424,31]
[312975960,1706560279081,-536.92,0.00053424,31]
[312975961,1706560279091,-764.64,0.00053424,2]
[312975962,1706560279101,-846.95,0.00053424,31]
[312975963,1706560279111,-830.73,0.00053424,31]
[312975964,1706560279120,-546.02,0.00053424,31]
[312975965,1706560279130,-1019.65,0.00053424,31]
[312975966,1706560279139,-1849.52,0.00053424,31]
[312975967,1706560279149,-500.0,0.00053424,31]
[312975968,1706560279159,-560.49,0.00053424,31]
[312975969,1706560279169,-500.0,0.00053424,31]
[312975970,1706560279179,-1462.48,0.00053424,31]
[312975971,1706560279188,-500.0,0.00053424,31]
[312975972,1706560279198,-151.0,0.00053425,30]
[312975973,1706560279208,-151.0,0.00053425,30]
[312975974,1706560279218,-151.0,0.00053425,30]
[312975975,1706560279227,-151.0,0.00053425,30]
[312975976,1706560279237,-151.0,0.00053425,30]
[312975977,1706560279247,-151.0,0.00053425,30]
[312975978,1706560279257,-151.0,0.00053425,30]
[312975979,1706560279266,-151.0,0.00053425,30]
[312975980,1706560279275,-151.0,0.00053425,30]
[312975981,1706560279285,-151.0,0.00053425,30]
[312975982,1706560279294,-151.0,0.00053425,30]
[312975983,1706560279303,-151.0,0.00053425,30]
[312975984,1706560279313,-151.0,0.00053425,30]
[312975985,1706560279322,-151.0,0.00053425,30]
[312975986,1706560279332,-151.0,0.00053425,30]
[312975987,1706560279341,-151.0,0.00053425,30]
[312975988,1706560279351,-151.0,0.00053425,30]
[312975989,1706560279361,-151.0,0.00053425,30]
[312975990,1706560279372,-151.0,0.00053425,30]
[312975991,1706560279382,-151.0,0.00053425,30]
[312975992,1706560279393,-151.0,0.00053425,30]
[312975993,1706560279403,-151.0,0.00053425,30]
[312975994,1706560279413,-206.281144,0.00053425,30]
[312975995,1706560279423,-154.0054391,0.00053457,60]
[312975996,1706560279432,-158.93642251,0.00053469,60]
[312975997,1706560279441,-159.32007806,0.00053481,60]
[312975998,1706560279451,-151.0129,0.00053498,59]
[312975999,1706560279460,-500000.0,0.000535,120]
[312976000,1706560279470,-180.0,0.000535,2]
[312976001,1706560279479,-6246.20453248,0.000535,20]
[312976002,1706560279488,-3000.0,0.000535,120]
[312976003,1706560279499,-102670.0,0.000535,120]
[312976004,1706560279508,-1000.0,0.000535,7]
[312976005,1706560279517,-157.47372314,0.00053505,60]
[312976006,1706560279527,-150.52477513,0.00053521,60]
[312976007,1706560279537,-2447.0,0.00053521,30]
[312976008,1706560279546,-558.0,0.00053521,30]
[312976009,1706560279556,-500.0,0.0005353,120]
[312976010,1706560279566,-150.52477513,0.00053536,60]
[312976011,1706560279575,-33889.9746263,0.0005355,120]
[312976012,1706560279586,-50000.0,0.00053555,14]
[312976013,1706560279595,-1522.0,0.0005356,8]
[312976014,1706560279604,-161.23409422,0.00053566,60]
[312976015,1706560279613,-217.0,0.00053579,40]
[312976016,1706560279623,-251.0,0.0005359,2]
[312976017,1706560279631,-171.30628108,0.00053593,60]
[312976018,1706560279640,-154.67281811,0.00053596,60]
[312976019,1706560279649,-150.52477513,0.00053608,60]
[312976020,1706560279658,-157.47372314,0.00053609,60]
[312976021,1706560279667,-158.2110657,0.00053626,60]
[312976022,1706560279677,-154.67281811,0.00053652,60]
[312976023,1706560279686,-153.29755698,0.0005366,60]
[312976024,1706560279696,-158.02937002,0.00053665,60]
[312976025,1706560279705,-157.83769784,0.00053669,60]
[312976026,1706560279715,-158.93642251,0.00053681,60]
[312976027,1706560279725,-155.63519764,0.00053681,60]
[312976028,1706560279735,-1453.14213719,0.00053685,30]
[312976029,1706560279745,-200.0,0.00053698,31]
[312976030,1706560279755,-802.85,0.00053698,31]
[312976031,1706560279764,-690.05,0.00053698,31]
[312976032,1706560279774,-500.0,0.00053698,7]
[312976033,1706560279783,-612.45,0.00053698,31]
[312976034,1706560279792,-960.0,0.00053698,31]
[312976035,1706560279802,-500.0,0.00053698,31]
[312976036,1706560279811,-500.0,0.00053698,31]
[312976037,1706560279821,-660.93,0.00053698,31]
[312976038,1706560279831,-500.0,0.00053698,31]
[312976039,1706560279843,-588.26,0.00053698,31]
[312976040,1706560279853,-500.0,0.00053698,31]
[312976041,1706560279862,-803.89,0.00053698,2]
[312976042,1706560279872,-584.71,0.00053698,31]
[312976043,1706560279882,-518.29,0.00053698,15]
[312976044,1706560279891,-794.24,0.00053698,2]
[312976045,1706560279901,-536.17,0.00053698,31]
[312976046,1706560279911,-500.0,0.00053698,31]
[312976047,1706560279923,-608.92,0.00053698,31]
[312976048,1706560279933,-500.0,0.00053698,31]
[312976049,1706560279942,-500.0,0.00053698,31]
[312976050,1706560279951,-500.0,0.00053698,31]
[312976051,1706560279960,-500.0,0.00053698,31]
[312976052,1706560279971,-500.0,0.00053698,31]
[312976053,1706560279980,-500.0,0.00053698,31]
[312976054,1706560279989,-794.87,0.00053698,31]
[312976055,1706560279998,-500.0,0.00053698,31]
[312976056,1706560280129,-637.14,0.00053698,31]
[312976057,1706560280140,-500.0,0.00053698,31]
[312976058,1706560280150,-500.0,0.00053698,31]
[312976059,1706560280159,-500.0,0.00053698,31]
[312976060,1706560280169,-500.0,0.00053698,31]
[312976061,1706560280178,-500.0,0.00053698,31]
[312976062,1706560280188,-500.0,0.00053698,31]
[312976063,1706560280198,-500.0,0.00053698,31]
[312976064,1706560280208,-527.51,0.00053698,2]
[312976065,1706560280218,-654.97,0.00053698,31]
[312976066,1706560280228,-1071.26,0.00053698,7]
[312976067,1706560280237,-500.0,0.00053698,31]
[312976068,1706560280247,-500.0,0.00053698,31]
[312976069,1706560280257,-1434.64,0.00053698,31]
[312976070,1706560280267,-500.0,0.00053698,31]
[312976071,1706560280277,-1000.0,0.00053698,7]
[312976072,1706560280287,-370.89624966,0.00053698,31]
[312976073,1706560280297,-613.37,0.00053698,31]
[312976074,1706560280306,-500.0,0.00053698,31]
[312976075,1706560280317,-1690.03,0.00053698,31]
[312976076,1706560280327,-1985.41,0.00053698,2]
[312976077,1706560280337,-500.0,0.00053698,31]
[312976078,1706560280347,-500.0,0.00053698,31]
[312976079,1706560280358,-500.0,0.00053698,31]
[312976080,1706560280367,-386.90295473,0.00053698,31]
[312976081,1706560280377,-500.0,0.00053698,31]
[312976082,1706560280386,-500.0,0.00053698,31]
[312976083,1706560280395,-500.0,0.00053698,31]
[312976084,1706560280405,-500.0,0.00053698,31]
[312976085,1706560280414,-500.0,0.00053698,31]
[312976086,1706560280424,-326.30309477,0.00053698,31]
[312976087,1706560280433,-500.0,0.00053698,31]
[312976088,1706560280442,-500.0,0.00053698,31]
[312976089,1706560280451,-500.0,0.00053698,31]
[312976090,1706560280461,-929.78,0.00053698,31]
[312976091,1706560280470,-500.0,0.00053698,31]
[312976092,1706560280479,-500.0,0.00053698,31]
[312976093,1706560280489,-500.0,0.00053698,31]
[312976094,1706560280498,-689.25,0.00053698,31]
[312976095,1706560280507,-603.34387846,0.00053698,31]
[312976096,1706560280517,-500.0,0.00053698,31]
[312976097,1706560280526,-500.0,0.00053698,31]
[312976098,1706560280536,-500.0,0.00053698,31]
[312976099,1706560280545,-1000.0,0.00053698,31]
[312976100,1706560280554,-525.86,0.00053698,31]
[312976101,1706560280563,-500.0,0.00053698,31]
[312976102,1706560280572,-500.0,0.00053698,31]
[312976103,1706560280582,-500.0,0.00053698,31]
[312976104,1706560280592,-508.14,0.00053698,31]
[312976105,1706560280601,-500.0,0.00053698,31]
[312976106,1706560280611,-703.04,0.00053698,31]
[312976107,1706560280621,-1153.07,0.00053698,31]
[312976108,1706560280630,-733.87,0.00053698,31]
[312976109,1706560280640,-500.0,0.00053698,31]
[312976110,1706560280650,-500.0,0.00053698,2]
[312976111,1706560280659,-500.0,0.00053698,31]
[312976112,1706560280669,-500.0,0.00053698,31]
[312976113,1706560280679,-542.06,0.00053698,31]
[312976114,1706560280688,-550.0,0.00053698,30]
[312976115,1706560280698,-500.0,0.00053698,31]
[312976116,1706560280708,-583.37031596,0.00053698,31]
[312976117,1706560280718,-500.0,0.00053698,31]
[312976118,1706560280728,-500.0,0.00053698,31]
[312976119,1706560280738,-760.13,0.00053698,31]
[312976120,1706560280747,-642.70326998,0.00053698,31]
[312976121,1706560280756,-526.06,0.00053698,31]
[312976122,1706560280766,-500.0,0.00053698,31]
[312976123,1706560280776,-500.0,0.00053698,31]
[312976124,1706560280785,-1016.8,0.00053698,31]